fUSD/lending_fUSD_20260413
["ID","MTS","AMOUNT","RATE_DAILY","PERIOD"]
[420401832,1776081121687,-1000.0,0.00041,120]
[420401833,1776081121701,-437.82728711,0.00041,5]
[420401834,1776081121719,-500.0,0.00041,120]
[420401835,1776081121729,-500.0,0.00041,120]
[420401836,1776081121741,-500.0,0.00041,120]
[420401837,1776081121765,-2739.41732144,0.00041,120]
[420401838,1776081121778,-57441.57,0.00041,2]
[420401839,1776081121808,-487.73463923,0.00041,30]
[420401840,1776081121820,-154.0,0.00041,120]
[420401841,1776081121835,-209.4267912,0.00041,120]
[420401842,1776081121858,-30000.0,0.00041,120]
[420401843,1776081121888,-700.0,0.00041,2]
[420401844,1776081121904,-395.0,0.00041,120]
[420401845,1776081121945,-1264.5866,0.00041,2]
[420401846,1776081121958,-313.0,0.00041,120]
[420401847,1776081121982,-1500.0,0.00041013,120]
[420401848,1776081121994,-250.0,0.00041017,30]
[420401849,1776081122013,-1500.0,0.00041041,120]
[420401850,1776081122030,-1000.0,0.00041048,31]
[420401851,1776081122052,-500.0,0.00041063,120]
[420401852,1776081122065,-1500.0,0.00041068,120]
[420401853,1776081122080,-150.0,0.0004107,120]
[420401854,1776081122095,-352.0,0.00041088,14]
[420401855,1776081122126,-352.0,0.00041088,14]
[420401856,1776081122137,-50000.0,0.00041093,120]
[420401857,1776081122150,-50000.0,0.00041093,120]
[420401858,1776081122190,-50000.0,0.00041093,120]
[420401859,1776081122201,-50000.0,0.00041093,120]
[420401860,1776081122227,-50000.0,0.00041093,120]
[420401861,1776081122241,-50000.0,0.00041093,120]
[420401862,1776081122266,-50000.0,0.00041093,120]
[420401863,1776081122291,-50000.0,0.00041093,120]
[420401864,1776081122314,-50000.0,0.00041093,120]
[420401865,1776081122334,-50000.0,0.00041093,120]
[420401866,1776081122358,-1012.86,0.00041093,120]
[420401867,1776081122377,-246.41702675,0.00041095,120]
[420401868,1776081122410,-50000.0,0.00041095,120]
[420401869,1776081122443,-1500.0,0.00041095,120]
[420401870,1776081122484,-500.0,0.00041095,120]
[420401871,1776081122524,-500.0,0.00041095,120]
[420401872,1776081122554,-500.0,0.00041095,120]
[420401873,1776081122569,-500.0,0.00041095,120]
[420401874,1776081122598,-500.0,0.00041095,120]
[420401875,1776081122615,-500.0,0.00041095,120]
[420401876,1776081122639,-500.0,0.00041095,120]
[420401877,1776081122652,-500.0,0.00041095,120]
[420401878,1776081122674,-500.0,0.00041095,120]
[420401879,1776081122685,-500.0,0.00041095,120]
[420401880,1776081122701,-500.0,0.00041095,120]
[420401881,1776081122713,-500.0,0.00041095,120]
[420401882,1776081122724,-500.0,0.00041095,120]
[420401883,1776081122736,-215.37350471,0.00041095,120]
[420401884,1776081122757,-1500.0,0.00041095,120]
[420401885,1776081122768,-250.0,0.00041096,2]
[420401886,1776081122784,-250.0,0.00041096,2]
[420401887,1776081122798,-250.0,0.00041096,2]
[420401888,1776081122813,-250.0,0.00041096,2]
[420401889,1776081122825,-250.0,0.00041096,2]
[420401890,1776081122844,-250.0,0.00041096,2]
[420401891,1776081122858,-250.0,0.00041096,2]
[420401892,1776081122869,-250.0,0.00041096,2]
[420401893,1776081122891,-250.0,0.00041096,2]
[420401894,1776081122907,-250.0,0.00041096,2]
[420401895,1776081122918,-3415.34,0.00041096,120]
[420401896,1776081122930,-151.0,0.00041096,120]
[420401897,1776081122960,-204.836528,0.00041096,120]
[420401898,1776081122973,-362.582606,0.00041096,120]
[420401899,1776081123012,-362.582606,0.00041096,120]
[420401900,1776081123055,-362.582606,0.00041096,120]
[420401901,1776081123068,-362.582606,0.00041096,120]
[420401902,1776081123101,-362.582606,0.00041096,120]
[420401903,1776081123113,-362.582606,0.00041096,120]
[420401904,1776081123128,-362.582606,0.00041096,120]
[420401905,1776081123148,-362.582606,0.00041096,120]
[420401906,1776081123165,-362.582606,0.00041096,120]
[420401907,1776081123181,-362.582606,0.00041096,120]
[420401908,1776081123194,-362.582606,0.00041096,120]
[420401909,1776081123209,-362.582606,0.00041096,120]
[420401910,1776081123226,-362.582606,0.00041096,120]
[420401911,1776081123241,-362.582606,0.00041096,120]
[420401912,1776081123259,-362.582606,0.00041096,120]
[420401913,1776081123278,-362.582606,0.00041096,120]
[420401914,1776081123293,-362.582606,0.00041096,120]
[420401915,1776081123318,-362.582606,0.00041096,120]
[420401916,1776081123329,-362.582606,0.00041096,120]
[420401917,1776081123343,-362.582603,0.00041096,120]
[420401918,1776081123359,-2959.51777376,0.000411,120]
[420401919,1776081123372,-1000.0,0.000411,120]
[420401920,1776081123782,-2000.0,0.0004111,90]
[420401921,1776081123804,-1500.0,0.00041123,120]
[420401922,1776081123814,-150.0,0.00041133,120]
[420401923,1776081123823,-564.45,0.00041133,120]
[420401924,1776081123842,-699.59,0.00041133,120]
[420401925,1776081123854,-1500.0,0.0004115,120]
[420401926,1776081123866,-150.0,0.00041178,120]
[420401927,1776081123876,-747.33110131,0.00041178,120]
[420401928,1776081123897,-155.0,0.000412,120]
[420401929,1776081123908,-1000.0,0.00041211,120]
[420401930,1776081123919,-1500.0,0.00041232,120]
[420401931,1776081123936,-1100.0,0.00041232,30]
[420401932,1776081123950,-150.0,0.00041259,120]
[420401933,1776081123960,-540.67,0.0004127,85]
[420401934,1776081123977,-373.20318674,0.00041292,2]
[420401935,1776081123991,-1000.0,0.000413,120]
[420401936,1776081124002,-1000.0,0.000413,120]
[420401937,1776081124018,-150.0,0.00041331,120]
[420401938,1776081124035,-352.0,0.00041345,14]
[420401939,1776081124045,-500.0,0.00041347,120]
[420401940,1776081124063,-500.0,0.00041358,120]
[420401941,1776081124082,-50000.0,0.00041369,120]
[420401942,1776081124107,-1500.0,0.00041369,120]
[420401943,1776081124117,-24277.66078223,0.00041369,10]
[420401944,1776081124131,-508.0,0.00041369,17]
[420401945,1776081124150,-601.3538603,0.00041376,2]
[420401946,1776081124181,-601.3538603,0.00041376,2]
[420401947,1776081124268,-601.3538603,0.00041376,2]
[420401948,1776081124279,-601.41775051,0.00041376,2]
[420401949,1776081124296,-601.41775051,0.00041376,2]
[420401950,1776081124336,-601.41775051,0.00041376,2]
[420401951,1776081124346,-601.41775051,0.00041376,2]
[420401952,1776081124375,-601.41775051,0.00041376,2]
[420401953,1776081124386,-601.41775051,0.00041376,2]
[420401954,1776081124401,-601.41775051,0.00041376,2]
[420401955,1776081124418,-601.41775051,0.00041376,2]
[420401956,1776081124428,-601.41775051,0.00041376,2]
[420401957,1776081124438,-601.41775051,0.00041376,2]
[420401958,1776081124449,-601.41775051,0.00041376,2]
[420401959,1776081124476,-601.41775051,0.00041376,2]
[420401960,1776081124486,-601.41775051,0.00041376,2]
[420401961,1776081124495,-601.41775051,0.00041376,2]
[420401962,1776081124510,-601.41775051,0.00041376,2]
[420401963,1776081124525,-601.41775051,0.00041376,2]
[420401964,1776081124535,-601.41775051,0.00041376,2]
[420401965,1776081124544,-601.41775051,0.00041376,2]
[420401966,1776081124570,-601.41775051,0.00041376,2]
[420401967,1776081124579,-601.41775051,0.00041376,2]
[420401968,1776081124593,-601.41775051,0.00041376,2]
[420401969,1776081124611,-601.41775051,0.00041376,2]
[420401970,1776081124621,-601.41775051,0.00041376,2]
[420401971,1776081124637,-601.41775051,0.00041376,2]
[420401972,1776081124652,-601.41775051,0.00041376,2]
[420401973,1776081124661,-525.07236158,0.00041376,2]
[420401974,1776081124677,-1061.43227461,0.00041376,2]
[420401975,1776081124687,-899.36894384,0.00041376,2]
[420401976,1776081124699,-540.8196762,0.00041376,2]
[420401977,1776081124719,-722.35976235,0.00041376,2]
[420401978,1776081124729,-300.26139511,0.00041376,2]
[420401979,1776081124738,-300.0,0.00041376,2]
[420401980,1776081124761,-649.85498405,0.00041376,2]
[420401981,1776081124770,-1141.39472161,0.00041376,2]
[420401982,1776081124789,-308.02691286,0.00041376,2]
[420401983,1776081124801,-860.01339685,0.00041376,2]
[420401984,1776081124817,-461.52249301,0.00041376,2]
[420401985,1776081124827,-309.31036485,0.00041376,2]
[420401986,1776081124837,-432.38544327,0.00041376,2]
[420401987,1776081124856,-449.58254558,0.00041376,2]
[420401988,1776081124865,-303.34033539,0.00041376,2]
[420401989,1776081124878,-308.26927858,0.00041376,2]
[420401990,1776081124896,-521.99006972,0.00041376,2]
[420401991,1776081124908,-300.0,0.00041376,2]
[420401992,1776081124918,-301.66663352,0.00041376,2]
[420401993,1776081124938,-1089.04236837,0.00041376,2]
[420401994,1776081124951,-1061.43227461,0.00041376,2]
[420401995,1776081124960,-540.8196762,0.00041376,2]
[420401996,1776081124977,-601.41775051,0.00041376,2]
[420401997,1776081124987,-899.36894384,0.00041376,2]
[420401998,1776081125017,-300.26139511,0.00041376,2]
[420401999,1776081125043,-525.07236158,0.00041376,2]
[420402000,1776081125053,-722.35976235,0.00041376,2]
[420402001,1776081125074,-300.0,0.00041376,2]
[420402002,1776081125105,-649.85498405,0.00041376,2]
[420402003,1776081125115,-1141.39472161,0.00041376,2]
[420402004,1776081125126,-308.02691286,0.00041376,2]
[420402005,1776081125163,-860.01339685,0.00041376,2]
[420402006,1776081125172,-309.31036485,0.00041376,2]
[420402007,1776081125185,-615.68974601,0.00041376,2]
[420402008,1776081125201,-432.38544328,0.00041376,2]
[420402009,1776081125215,-449.96329318,0.00041376,2]
[420402010,1776081125225,-303.34033539,0.00041376,2]
[420402011,1776081125234,-521.99006972,0.00041376,2]
[420402012,1776081125253,-308.26927858,0.00041376,2]
[420402013,1776081125266,-549.04581008,0.00041376,2]
[420402014,1776081125291,-1089.04236839,0.00041376,2]
[420402015,1776081125301,-503.0175246,0.00041376,2]
[420402016,1776081125311,-601.41775051,0.00041376,2]
[420402017,1776081125332,-689.8128751,0.00041376,2]
[420402018,1776081125342,-1061.43227461,0.00041376,2]
[420402019,1776081125354,-899.36894384,0.00041376,2]
[420402020,1776081125376,-540.8196762,0.00041376,2]
[420402021,1776081125385,-722.35976235,0.00041376,2]
[420402022,1776081125395,-300.0,0.00041376,2]
[420402023,1776081125417,-866.47331232,0.00041376,2]
[420402024,1776081125434,-380.16397793,0.00041376,2]
[420402025,1776081125444,-308.02691286,0.00041376,2]
[420402026,1776081125458,-860.01339685,0.00041376,2]
[420402027,1776081125477,-309.31036485,0.00041376,2]
[420402028,1776081125499,-303.34033539,0.00041376,2]
[420402029,1776081125512,-521.99006971,0.00041376,2]
[420402030,1776081125522,-411.23348177,0.00041376,2]
[420402031,1776081125555,-1089.04236837,0.00041376,2]
[420402032,1776081125566,-802.20978538,0.00041376,2]
[420402033,1776081125592,-353.81075851,0.00041376,2]
[420402034,1776081125602,-300.38955301,0.00041376,2]
[420402035,1776081125622,-540.8196762,0.00041376,2]
[420402036,1776081125632,-722.35976236,0.00041376,2]
[420402037,1776081125642,-300.0,0.00041376,2]
[420402038,1776081125658,-300.0,0.00041376,2]
[420402039,1776081125668,-308.02691286,0.00041376,2]
[420402040,1776081125679,-860.01339685,0.00041376,2]
[420402041,1776081125689,-309.31036485,0.00041376,2]
[420402042,1776081125703,-303.34033539,0.00041376,2]
[420402043,1776081125713,-1089.04236838,0.00041376,2]
[420402044,1776081125723,-540.8196762,0.00041376,2]
[420402045,1776081125734,-300.0,0.00041376,2]
[420402046,1776081125747,-300.0,0.00041376,2]
[420402047,1776081125757,-410.79442973,0.00041376,2]
[420402048,1776081125767,-860.01339686,0.00041376,2]
[420402049,1776081125777,-309.42734166,0.00041376,2]
[420402050,1776081125788,-303.34033539,0.00041376,2]
[420402051,1776081125798,-1089.04236839,0.00041376,2]
[420402052,1776081125808,-300.07786897,0.00041376,2]
[420402053,1776081125819,-540.8196762,0.00041376,2]
[420402054,1776081125835,-300.0,0.00041376,2]
[420402055,1776081125846,-300.0,0.00041376,2]
[420402056,1776081125857,-860.01339684,0.00041376,2]
[420402057,1776081125874,-303.34033539,0.00041376,2]
[420402058,1776081125899,-1089.04236837,0.00041376,2]
[420402059,1776081125909,-300.07786895,0.00041376,2]
[420402060,1776081125923,-539.7793426,0.00041376,2]
[420402061,1776081125939,-482.7965447,0.00041376,2]
[420402062,1776081125950,-300.0,0.00041376,2]
[420402063,1776081125960,-404.51784294,0.00041376,2]
[420402064,1776081125981,-1089.04236839,0.00041376,2]
[420402065,1776081125992,-300.07786896,0.00041376,2]
[420402066,1776081126003,-300.0,0.00041376,2]
[420402067,1776081126015,-363.01412306,0.00041376,2]
[420402068,1776081126031,-300.07786897,0.00041376,2]
[420402069,1776081126041,-300.0,0.00041376,2]
[420402070,1776081126050,-300.0,0.00041376,2]
[420402071,1776081126062,-352.56382906,0.00041376,2]
[420402072,1776081126073,-314.10821029,0.00041376,2]
[420402073,1776081126083,-300.07786895,0.00041376,2]
[420402074,1776081126092,-413.959575,0.00041376,2]
[420402075,1776081126105,-1061.4322746,0.00041376,2]
[420402076,1776081126116,-963.14635007,0.00041376,2]
[420402077,1776081126125,-400.34852687,0.00041376,2]
[420402078,1776081126135,-300.0,0.00041376,2]
[420402079,1776081126146,-300.0,0.00041376,2]
[420402080,1776081126158,-300.0,0.00041376,2]
[420402081,1776081126173,-300.0,0.00041376,2]
[420402082,1776081126183,-300.0,0.00041376,2]
[420402083,1776081126192,-300.0,0.00041376,2]
[420402084,1776081126210,-300.21262989,0.00041376,2]
[420402085,1776081126220,-300.0,0.00041376,2]
[420402086,1776081126229,-300.0,0.00041376,2]
[420402087,1776081126243,-300.0,0.00041376,2]
[420402088,1776081126255,-300.07786896,0.00041376,2]
[420402089,1776081126265,-300.0,0.00041376,2]
[420402090,1776081126285,-1061.4322746,0.00041376,2]
[420402091,1776081126297,-722.35976234,0.00041376,2]
[420402092,1776081126307,-300.2613951,0.00041376,2]
[420402093,1776081126319,-300.24757292,0.00041376,2]
[420402094,1776081126362,-300.0,0.00041376,2]
[420402095,1776081126372,-300.0,0.00041376,2]
[420402096,1776081126390,-576.51392467,0.00041376,2]
[420402097,1776081126403,-300.0,0.00041376,2]
[420402098,1776081126413,-300.0,0.00041376,2]
[420402099,1776081126427,-300.0,0.00041376,2]
[420402100,1776081126439,-300.0,0.00041376,2]
[420402101,1776081126455,-300.0,0.00041376,2]
[420402102,1776081126467,-300.0,0.00041376,2]
[420402103,1776081126494,-300.0,0.00041376,2]
[420402104,1776081126516,-300.0,0.00041376,2]
[420402105,1776081126550,-372.98463797,0.00041376,2]
[420402106,1776081126571,-586.02966754,0.00041376,2]
[420402107,1776081126586,-300.0,0.00041376,2]
[420402108,1776081126603,-300.0,0.00041376,2]
[420402109,1776081126619,-361.12297098,0.00041376,2]
[420402110,1776081126630,-300.0,0.00041376,2]
[420402111,1776081126665,-300.0,0.00041376,2]
[420402112,1776081126677,-300.0,0.00041376,2]
[420402113,1776081126692,-300.07786897,0.00041376,2]
[420402114,1776081126719,-300.0,0.00041376,2]
[420402115,1776081126732,-300.0,0.00041376,2]
[420402116,1776081126767,-300.0,0.00041376,2]
[420402117,1776081126777,-1061.4322746,0.00041376,2]
[420402118,1776081126799,-899.26895968,0.00041376,2]
[420402119,1776081126826,-583.35244528,0.00041376,2]
[420402120,1776081126838,-540.8196762,0.00041376,2]
[420402121,1776081126857,-722.35976234,0.00041376,2]
[420402122,1776081126869,-300.0,0.00041376,2]
[420402123,1776081126879,-300.26139511,0.00041376,2]
[420402124,1776081126899,-300.0,0.00041376,2]
[420402125,1776081126908,-300.0,0.00041376,2]
[420402126,1776081126918,-300.0,0.00041376,2]
[420402127,1776081126928,-300.0,0.00041376,2]
[420402128,1776081126941,-1141.39472161,0.00041376,2]
[420402129,1776081126951,-461.46808937,0.00041376,2]
[420402130,1776081126971,-576.51392467,0.00041376,2]
[420402131,1776081126981,-300.0,0.00041376,2]
[420402132,1776081126990,-300.0,0.00041376,2]
[420402133,1776081127009,-300.0,0.00041376,2]
[420402134,1776081127019,-300.0,0.00041376,2]
[420402135,1776081127032,-300.0,0.00041376,2]
[420402136,1776081127045,-300.0,0.00041376,2]
[420402137,1776081127063,-300.0,0.00041376,2]
[420402138,1776081127073,-300.0,0.00041376,2]
[420402139,1776081127087,-300.0,0.00041376,2]
[420402140,1776081127105,-478.98683899,0.00041376,2]
[420402141,1776081127118,-300.0,0.00041376,2]
[420402142,1776081127136,-300.0,0.00041376,2]
[420402143,1776081127156,-300.0,0.00041376,2]
[420402144,1776081127166,-300.0,0.00041376,2]
[420402145,1776081127178,-300.0,0.00041376,2]
[420402146,1776081127192,-300.0,0.00041376,2]
[420402147,1776081127208,-300.0,0.00041376,2]
[420402148,1776081127221,-300.0,0.00041376,2]
[420402149,1776081127234,-300.07786895,0.00041376,2]
[420402150,1776081127245,-300.0,0.00041376,2]
[420402151,1776081127255,-300.0,0.00041376,2]
[420402152,1776081127267,-525.07236158,0.00041376,2]
[420402153,1776081127280,-300.0,0.00041376,2]
[420402154,1776081127294,-1061.43227465,0.00041376,2]
[420402155,1776081127309,-899.26895968,0.00041376,2]
[420402156,1776081127322,-300.0,0.00041376,2]
[420402157,1776081127334,-540.8196762,0.00041376,2]
[420402158,1776081127467,-722.35976235,0.00041376,2]
[420402159,1776081127480,-300.0,0.00041376,2]
[420402160,1776081127499,-300.2613951,0.00041376,2]
[420402161,1776081127515,-300.0,0.00041376,2]
[420402162,1776081127525,-300.0,0.00041376,2]
[420402163,1776081127542,-497.575924,0.00041376,2]
[420402164,1776081127559,-300.0,0.00041376,2]
[420402165,1776081127575,-1141.39472161,0.00041376,2]
[420402166,1776081127593,-300.0,0.00041376,2]
[420402167,1776081127607,-300.00000001,0.00041376,2]
[420402168,1776081127634,-461.46808937,0.00041376,2]
[420402169,1776081127644,-300.0,0.00041376,2]
[420402170,1776081127658,-300.0,0.00041376,2]
[420402171,1776081127668,-300.0,0.00041376,2]
[420402172,1776081127686,-521.99006972,0.00041376,2]
[420402173,1776081127698,-300.0,0.00041376,2]
[420402174,1776081127709,-532.2235426,0.00041376,2]
[420402175,1776081127730,-300.0,0.00041376,2]
[420402176,1776081127753,-300.0,0.00041376,2]
[420402177,1776081127767,-300.0,0.00041376,2]
[420402178,1776081127780,-300.0,0.00041376,2]
[420402179,1776081127816,-300.0,0.00041376,2]
[420402180,1776081127830,-300.0,0.00041376,2]
[420402181,1776081127851,-300.0,0.00041376,2]
[420402182,1776081127873,-300.0,0.00041376,2]
[420402183,1776081127895,-300.0,0.00041376,2]
[420402184,1776081127925,-300.0,0.00041376,2]
[420402185,1776081127938,-300.0,0.00041376,2]
[420402186,1776081127957,-300.0,0.00041376,2]
[420402187,1776081127968,-300.0,0.00041376,2]
[420402188,1776081127983,-300.0,0.00041376,2]
[420402189,1776081128009,-300.0,0.00041376,2]
[420402190,1776081128019,-568.41282665,0.00041376,2]
[420402191,1776081128032,-301.63066328,0.00041376,2]
[420402192,1776081128054,-300.0,0.00041376,2]
[420402193,1776081128064,-300.0,0.00041376,2]
[420402194,1776081128075,-300.0,0.00041376,2]
[420402195,1776081128086,-300.0,0.00041376,2]
[420402196,1776081128101,-300.07786896,0.00041376,2]
[420402197,1776081128123,-300.0,0.00041376,2]
[420402198,1776081128134,-525.07236158,0.00041376,2]
[420402199,1776081128144,-300.0,0.00041376,2]
[420402200,1776081128169,-300.0,0.00041376,2]
[420402201,1776081128179,-1061.43227461,0.00041376,2]
[420402202,1776081128195,-899.26895968,0.00041376,2]
[420402203,1776081128218,-300.0,0.00041376,2]
[420402204,1776081128252,-540.8196762,0.00041376,2]
[420402205,1776081128262,-722.35976235,0.00041376,2]
[420402206,1776081128297,-300.0,0.00041376,2]
[420402207,1776081128307,-300.26139511,0.00041376,2]
[420402208,1776081128334,-300.0,0.00041376,2]
[420402209,1776081128346,-300.0,0.00041376,2]
[420402210,1776081128357,-649.85498405,0.00041376,2]
[420402211,1776081128396,-300.0,0.00041376,2]
[420402212,1776081128404,-300.0,0.00041376,2]
[420402213,1776081128420,-300.0,0.00041376,2]
[420402214,1776081128444,-1141.39472161,0.00041376,2]
[420402215,1776081128455,-308.02691286,0.00041376,2]
[420402216,1776081128474,-300.0,0.00041376,2]
[420402217,1776081128486,-860.09385934,0.00041376,2]
[420402218,1776081128497,-300.0,0.00041376,2]
[420402219,1776081128518,-300.0,0.00041376,2]
[420402220,1776081128546,-461.52249302,0.00041376,2]
[420402221,1776081128557,-722.24460625,0.00041376,2]
[420402222,1776081128590,-300.0,0.00041376,2]
[420402223,1776081128602,-300.0,0.00041376,2]
[420402224,1776081128612,-300.0,0.00041376,2]
[420402225,1776081128626,-300.0,0.00041376,2]
[420402226,1776081128638,-521.99006972,0.00041376,2]
[420402227,1776081128651,-308.26927858,0.00041376,2]
[420402228,1776081128661,-300.0,0.00041376,2]
[420402229,1776081128674,-300.0,0.00041376,2]
[420402230,1776081128686,-300.00000001,0.00041376,2]
[420402231,1776081128696,-421.08415701,0.00041376,2]
[420402232,1776081128710,-300.0,0.00041376,2]
[420402233,1776081128734,-301.14681842,0.00041376,2]
[420402234,1776081128746,-300.0,0.00041376,2]
[420402235,1776081128759,-300.0,0.00041376,2]
[420402236,1776081128771,-300.0,0.00041376,2]
[420402237,1776081128780,-300.0,0.00041376,2]
[420402238,1776081128790,-300.0,0.00041376,2]
[420402239,1776081128805,-300.0,0.00041376,2]
[420402240,1776081128816,-300.0,0.00041376,2]
[420402241,1776081128827,-300.00000001,0.00041376,2]
[420402242,1776081128836,-300.0,0.00041376,2]
[420402243,1776081128855,-300.00000001,0.00041376,2]
[420402244,1776081128865,-300.47248275,0.00041376,2]
[420402245,1776081128875,-300.0,0.00041376,2]
[420402246,1776081128887,-300.7246225,0.00041376,2]
[420402247,1776081128902,-300.0,0.00041376,2]
[420402248,1776081128918,-300.98382531,0.00041376,2]
[420402249,1776081128930,-300.0,0.00041376,2]
[420402250,1776081128946,-301.66663352,0.00041376,2]
[420402251,1776081128958,-300.0,0.00041376,2]
[420402252,1776081128968,-300.0,0.00041376,2]
[420402253,1776081128983,-300.0,0.00041376,2]
[420402254,1776081128998,-573.65031678,0.00041376,2]
[420402255,1776081129008,-300.07786897,0.00041376,2]
[420402256,1776081129018,-300.0,0.00041376,2]
[420402257,1776081129042,-300.0,0.00041376,2]
[420402258,1776081129052,-525.07236158,0.00041376,2]
[420402259,1776081129068,-300.0,0.00041376,2]
[420402260,1776081129081,-1065.0123359,0.00041376,2]
[420402261,1776081129092,-300.0,0.00041376,2]
[420402262,1776081129103,-899.26895968,0.00041376,2]
[420402263,1776081129120,-540.8196762,0.00041376,2]
[420402264,1776081129130,-722.35976235,0.00041376,2]
[420402265,1776081129139,-300.0,0.00041376,2]
[420402266,1776081129160,-300.0,0.00041376,2]
[420402267,1776081129170,-300.26139511,0.00041376,2]
[420402268,1776081129180,-300.0,0.00041376,2]
[420402269,1776081129191,-300.0,0.00041376,2]
[420402270,1776081129220,-649.85498405,0.00041376,2]
[420402271,1776081129236,-300.0,0.00041376,2]
[420402272,1776081129247,-300.0,0.00041376,2]
[420402273,1776081129270,-300.0,0.00041376,2]
[420402274,1776081129284,-1141.39472161,0.00041376,2]
[420402275,1776081129295,-308.02691286,0.00041376,2]
[420402276,1776081129320,-300.0,0.00041376,2]
[420402277,1776081129330,-860.09385934,0.00041376,2]
[420402278,1776081129354,-300.0,0.00041376,2]
[420402279,1776081129383,-300.0,0.00041376,2]
[420402280,1776081129397,-300.0,0.00041376,2]
[420402281,1776081129409,-300.0,0.00041376,2]
[420402282,1776081129429,-309.31036485,0.00041376,2]
[420402283,1776081129438,-300.00000001,0.00041376,2]
[420402284,1776081129451,-461.522493,0.00041376,2]
[420402285,1776081129485,-300.64387597,0.00041376,2]
[420402286,1776081129495,-432.38544327,0.00041376,2]
[420402287,1776081129507,-449.58254558,0.00041376,2]
[420402288,1776081129527,-300.0,0.00041376,2]
[420402289,1776081129543,-300.0,0.00041376,2]
[420402290,1776081129562,-303.34033538,0.00041376,2]
[420402291,1776081129573,-300.0,0.00041376,2]
[420402292,1776081129582,-300.0,0.00041376,2]
[420402293,1776081129598,-524.11288295,0.00041376,2]
[420402294,1776081129608,-308.26927858,0.00041376,2]
[420402295,1776081129617,-300.0,0.00041376,2]
[420402296,1776081129630,-300.0,0.00041376,2]
[420402297,1776081129643,-300.0,0.00041376,2]
[420402298,1776081129654,-418.62084882,0.00041376,2]
[420402299,1776081129664,-300.0,0.00041376,2]
[420402300,1776081129675,-300.0,0.00041376,2]
[420402301,1776081129695,-300.33652183,0.00041376,2]
[420402302,1776081129704,-300.0,0.00041376,2]
[420402303,1776081129714,-1092.96384579,0.00041376,2]
[420402304,1776081129729,-300.0,0.00041376,2]
[420402305,1776081129744,-300.0,0.00041376,2]
[420402306,1776081129755,-469.08850014,0.00041376,2]
[420402307,1776081129766,-457.8520153,0.00041376,2]
[420402308,1776081129793,-300.0,0.00041376,2]
[420402309,1776081129803,-300.0,0.00041376,2]
[420402310,1776081129814,-300.0,0.00041376,2]
[420402311,1776081129838,-300.39925412,0.00041376,2]
[420402312,1776081129851,-300.33186646,0.00041376,2]
[420402313,1776081129861,-300.0,0.00041376,2]
[420402314,1776081129876,-300.0,0.00041376,2]
[420402315,1776081129885,-300.0,0.00041376,2]
[420402316,1776081129900,-300.0,0.00041376,2]
[420402317,1776081129910,-301.66663352,0.00041376,2]
[420402318,1776081129924,-487.4180441,0.00041376,2]
[420402319,1776081129938,-300.0,0.00041376,2]
[420402320,1776081129952,-300.0,0.00041376,2]
[420402321,1776081129961,-300.07786895,0.00041376,2]
[420402322,1776081129973,-359.59742099,0.00041376,2]
[420402323,1776081129987,-377.83257478,0.00041376,2]
[420402324,1776081130001,-300.0,0.00041376,2]
[420402325,1776081130011,-300.00000001,0.00041376,2]
[420402326,1776081130027,-525.07236158,0.00041376,2]
[420402327,1776081130041,-300.0,0.00041376,2]
[420402328,1776081130051,-899.468928,0.00041376,2]
[420402329,1776081130078,-1061.4322746,0.00041376,2]
[420402330,1776081130088,-540.8196762,0.00041376,2]
[420402331,1776081130098,-722.35976236,0.00041376,2]